Cogmind - Beta 9.1 @@@ ROGUE MODE // 2019.11.01 @ 17:23:59 Player: MrPainting Result: Destroyed self via exploding Fusion Modulator Performance ------------- Evolutions (1) 500 Regions Visited (2) 400 Robots Destroyed (45) 225 Value Destroyed (966) 966 Prototype IDs (4) 80 Alien Tech Used (0) 0 Bonus (37) 37 TOTAL SCORE: 2208 Bonus ------- High Alert Combat Kills 37 Cogmind --------- Core Integrity 0/400 Matter 220/300 Energy 280/280 System Corruption 0% Temperature Cool (250) Location -9/Materials Parts ------- Power (1) Heavy Ion Engine Propulsion (4) Improved Hover Unit Improved Hover Unit Improved Hover Unit Improved Hover Unit Utility (2) Large Storage Unit Visual Processing Unit Weapon (2) Electrolaser Assault Cannon Inventory (10) Large Storage Unit Recoil Stabilizer Recoil Stabilizer System Shield System Shield System Shield Assault Cannon Assault Cannon Assault Cannon Rocket Launcher Peak State ------------ Power Light Nuclear Core Propulsion Improved Hover Unit Improved Hover Unit Improved Hover Unit Improved Hover Unit Utility Visual Processing Unit Transmission Jammer Weapon Electrolaser Electrolaser Inventory Improved Heat Sink Electrolaser Improved Assault Rifle Grenade Launcher [Rating: 23] Favorites ----------- Power Light Ion Engine Engine Light Ion Engine Power Core Light Nuclear Core Propulsion Improved Hover Unit Treads Light Treads Leg Aluminum Leg Hover Unit Improved Hover Unit Flight Unit Flight Unit Utility Small Storage Unit Device Improved Heat Sink Storage Small Storage Unit Processor Visual Processing Unit Protection Light Armor Plating Weapon Assault Rifle Energy Gun Electrolaser Energy Cannon Advanced Beam Cannon Ballistic Gun Assault Rifle Ballistic Cannon Assault Cannon Launcher Rocket Launcher Special Weapon Plasma Cutter Build | -11 -10 -9 ------- Run | Scr Mat Mat Slots Evolved 2 | . . 2 Power . | . . . Propulsion 2 | . . 2 Utility . | . . . Weapon . | . . . Parts Attached 64 | 3 18 43 Power 9 | . 2 7 Engine 8 | . 2 6 Core 1 | . . 1 Reactor . | . . . Propulsion 24 | 2 1 21 Treads 1 | . . 1 Leg 3 | 2 1 . Wheel . | . . . Hover 11 | . . 11 Flight 9 | . . 9 Utility 13 | . 7 6 Device 7 | . 3 4 Storage 4 | . 3 1 Processor 1 | . . 1 Hackware . | . . . Protection 1 | . 1 . Artifact . | . . . Weapon 18 | 1 8 9 Energy Gun 5 | . 1 4 Energy Cannon 2 | . 1 1 Ballistic Gun 7 | 1 4 2 Ballistic Cannon 1 | . . 1 Launcher 1 | . . 1 Special Weapon 2 | . 2 . Impact Weapon . | . . . Slashing Weapon . | . . . Piercing Weapon . | . . . Special Melee Weapon . | . . . Unidentified Prototypes 4 | . . 4 Parts Lost 8 | . 3 5 Power 1 | . 1 . Propulsion 1 | . . 1 Utility 1 | . . 1 Weapon 5 | . 2 3 Highest Loss Streak 2 | . 2 2 Average Slot Usage (%) 81 | . 93 76 Engine 10 | . 11 9 Treads 1 | . . 2 Leg 9 | . 28 . Hover 12 | . . 17 Flight 3 | . . 5 Device 7 | . 15 3 Storage 7 | . 5 8 Processor 3 | . . 4 Protection 2 | . 6 . Energy Gun 5 | . . 7 Energy Cannon 2 | . 1 2 Ballistic Gun 9 | . 13 8 Special Weapon 3 | . 10 . Naked Turns . | . . . Heaviest Build 33 | 2 16 33 Greatest Support 32 | 20 20 32 Greatest Overweight (x) 4 | . . 4 Average Overweight (x) . | . . . Largest Inventory Capacity 10 | 4 6 10 Average Capacity 5 | 4 4 6 Most Carried 10 | 4 6 10 Average Carried 4 | 3 3 5 Final Capacity 10 | 4 6 10 Final Carried 10 | 4 6 10 Class Distribution -------------------- 93% | Mutant 3% | Scavenger-Mutant Dominant Class ---------------- Mutant | -10/Materials Mutant | -9/Materials Resources | -11 -10 -9 ----------- Run | Scr Mat Mat Matter Collected 1367 | 230 386 751 Remotely 170 | . 170 . Salvage Created 1240 | . 326 914 Parts 88 | . 18 70 Haulers Intercepted 3 | . . 3 Recyclers Shooed 2 | . 1 1 Parts Field Recycled . | . . . Retrieved Matter . | . . . Parts Self-Destructed . | . . . Prevented . | . . . Kills | -11 -10 -9 ------- Run | Scr Mat Mat Combat Hostiles Destroyed 30 | . 6 24 Guns 16 | . 3 13 Cannons 5 | . 3 2 AOE 8 | . . 8 Classes Destroyed 10 | . 5 5 Worker 3 | . 1 2 Builder 1 | . . 1 Tunneler 1 | . 1 . Hauler 3 | . . 3 Recycler 1 | . 1 . Operator 2 | . . 2 Watcher 4 | . . 4 Swarmer 13 | . 3 10 Grunt 11 | . 3 8 Sentry 6 | . . 6 Best Kill Streak 8 | . 4 8 Combat Bots Only 5 | . 3 5 Max Kills in Single Turn 3 | . 2 3 Gunslinging . | . . . Exploded 2 | . . 2 Melee . | . . . Uniques/NPCs Destroyed . | . . . Combat | -11 -10 -9 -------- Run | Scr Mat Mat Damage Taken 1749 | . 440 1309 Core 539 | . 34 505 Absorbed by Shields . | . . . Core Remaining (%) 93 | 100 86 . Volleys Fired 115 | . 25 90 Largest 2 | . 2 2 Hottest 126 | . 80 126 Shots Fired 214 | . 49 165 Gun 164 | . 30 134 Cannon 28 | . 8 20 Launcher 11 | . . 11 Special 11 | . 11 . Kinetic 109 | . 27 82 Thermal 91 | . 19 72 Explosive 11 | . . 11 Electromagnetic 3 | . 3 . Robot Hit Streak 12 | . 8 12 Robot Miss Streak 4 | . 2 4 Penetration Max . | . . . Secondary Targets . | . . . Shots Hit Robots 126 | . 30 96 Core Hits 68 | . 15 53 Critical Hits 5 | . 1 4 Critical Kills 4 | . 1 3 Critical Parts Destroyed 1 | . . 1 Melee Attacks . | . . . Impact . | . . . Slashing . | . . . Piercing . | . . . Sneak Attacks . | . . . Combat Hostiles . | . . . Follow-up Attacks . | . . . Damage Inflicted 2915 | . 407 2508 Guns 1368 | . 198 1170 Cannons 365 | . 86 279 Explosions 1059 | . . 1059 Melee . | . . . Ramming . | . . . Kinetic 614 | . 153 461 Thermal 1411 | . 209 1202 Explosive 845 | . . 845 Electromagnetic 45 | . 45 . Impact . | . . . Slashing . | . . . Piercing . | . . . Highest Corruption . | . . . Average Corruption . | . . . Corruption Purged . | . . . Overload Shots . | . . . Overflow Damage 14 | . . 14 Projectiles . | . . . Explosions 14 | . . 14 Melee . | . . . Knockbacks . | . . . Impact . | . . . Kinetic . | . . . Secondary . | . . . Self-Inflicted Damage 262 | . . 262 Shots 4 | . . 4 Rammed . | . . . Targets Rammed . | . . . Kicked . | . . . Crushed . | . . . Highest Temperature 430 | . . 430 Average Temperature 137 | . . 137 Received Heat Transfer 492 | . 123 369 Effects 5 | . . 5 Shutdowns 2 | . . 2 Energy Bleed 2 | . . 2 Short Circuit 1 | . . 1 Siege Activations . | . . . Robots Corrupted . | . . . Combat Hostiles . | . . . Parts Fried . | . . . Impact Corruptions . | . . . Robots Melted 1 | . . 1 Combat Hostiles 1 | . . 1 Parts Melted 11 | . 4 7 Heat Transferred 2764 | . 592 2172 Parts Sabotaged . | . . . Parts Stolen . | . . . Parts Stripped . | . . . Power Chain Reactions . | . . . Missiles Intercepted . | . . . Alert | -11 -10 -9 ------- Run | Scr Mat Mat Peak Influence 662 | . 150 662 Average Influence 189 | . 57 269 Maximum Alert Level 2 | . . 2 Low Security (%) 62 | . . . Level 1 24 | . . . Level 2 12 | . . . Level 3 . | . . . Level 4 . | . . . Level 5 . | . . . High Security . | . . . Max Security . | . . . Squads Dispatched 4 | . 1 3 Investigation 2 | . 1 1 Extermination . | . . . Reinforcement 2 | . . 2 Assault . | . . . Garrison . | . . . Intercept . | . . . Construction Impeded . | . . . Haulers Reinforced . | . . . Stealth | -11 -10 -9 --------- Run | Scr Mat Mat Distress Signals 5 | . 1 4 Communications Jammed . | . . . Distress Signals . | . . . Times Spotted 46 | . 8 38 Peak Tracking Total 5 | . 5 5 Tactical Retreats 2 | . 1 1 Traps | -11 -10 -9 ------- Run | Scr Mat Mat Traps Triggered 3 | . 1 2 Indirectly . | . . . Trap Hack Attempts . | . . . Triggered . | . . . Disarmed . | . . . Reprogrammed . | . . . Reused . | . . . Traps Extracted . | . . . Installed . | . . . Triggered . | . . . Machines | -11 -10 -9 ---------- Run | Scr Mat Mat Machines Disabled 3 | . . 3 Max in Single Turn 2 | . . 2 Machines Sabotaged . | . . . Garrisons Compromised . | . . . Overloaded Fab Kills . | . . . Fab Network Shutdowns . | . . . Hacking | -11 -10 -9 --------- Run | Scr Mat Mat Machines Accessed 2 | . . 2 Terminals 2 | . . 2 Fabricators . | . . . Repair Stations . | . . . Recycling Units . | . . . Scanalyzers . | . . . Garrison Access . | . . . Total Hacks 5 | . . 5 Successful 1 | . . 1 Failed 4 | . . 4 Catastrophic 1 | . . 1 Database Lockouts . | . . . Manual 5 | . . 5 Terminals 5 | . . 5 Fabricators . | . . . Repair Stations . | . . . Recycling Units . | . . . Scanalyzers . | . . . Garrison Access . | . . . Terminal Hacks . | . . . Fabricator Hacks . | . . . Repair Station Hacks . | . . . Recycling Unit Hacks . | . . . Scanalyzer . | . . . Garrison Access Hacks . | . . . Unauthorized Hacks 6 | . . 6 Terminals 1 | . . 1 Botnet 1 | . . 1 Fabricators . | . . . Repair Stations . | . . . Recycling Units . | . . . Scanalyzers . | . . . Garrison Access . | . . . Data Cores Recovered . | . . . Used . | . . . Hacking Detections 2 | . . 2 Full Trace Events . | . . . Feedback Events . | . . . Feedback Blocked . | . . . Robot Schematics Acquired . | . . . Robots Built . | . . . Matter . | . . . Time . | . . . Total Robot Build Rating . | . . . Part Schematics Acquired . | . . . Parts Built . | . . . Matter . | . . . Time . | . . . Total Part Build Rating . | . . . Parts Repaired . | . . . Time . | . . . Parts Recycled . | . . . Recycled Matter . | . . . Retrieved Matter . | . . . Retrieved Components . | . . . Parts Scanalyzed . | . . . Part Schematics Acquired . | . . . Parts Damaged . | . . . Bothacking | -11 -10 -9 ------------ Run | Scr Mat Mat Used RIF Installer . | . . . Robots Hacked . | . . . Non-combat . | . . . Combat . | . . . Robot Hacks Applied . | . . . Relay Couplers Released . | . . . Robots Rewired . | . . . Allies Hacked . | . . . Hacks Repelled . | . . . Allies | -11 -10 -9 -------- Run | Scr Mat Mat Total Allies . | . . . Largest Group . | . . . Highest-Rated Group . | . . . Highest-Rated Ally . | . . . Total Orders . | . . . Ally Attacks . | . . . Total Damage . | . . . Kills . | . . . Allies Corrupted . | . . . Allies Melted . | . . . Intel | -11 -10 -9 ------- Run | Scr Mat Mat Robot Analysis Total . | . . . Derelict Logs Recovered . | . . . Drone Launches . | . . . Drone Recoveries . | . . . Exploration | -11 -10 -9 ------------- Run | Scr Mat Mat Turns Passed 1253 | 61 394 798 Spaces Moved 786 | 57 213 516 Core 73 | 28 . 45 Treads 77 | . . 77 Legs 242 | 29 213 . Wheels . | . . . Hover 314 | . . 314 Flight 80 | . . 80 Fastest Speed 31 | 50 120 31 Average Speed 91 | 85 120 80 Slowest Speed 250 | 120 120 250 Overloaded Moves . | . . . Propulsion Burnouts . | . . . Robots Hopped . | . . . Cave-ins Triggered . | . . . Exploration Rate (%) 29 | 3 36 49 Regions Visited 2 Branch Regions . Pre-discovered Areas . | . . . Known Exits Taken . | . . . Unknown Exits Taken 2 | 1 1 . Scrap Searched . | . . . Spaces Dug 25 | . . 25 Terrain Destroyed 105 | . . 105 Melee . | . . . Projectile 1 | . . 1 AOE 104 | . . 104 Actions | -11 -10 -9 --------- Run | Scr Mat Mat Total 1101 | 68 291 742 Wait 17 | 4 9 4 Move 784 | 56 212 516 Hop . | . . . Pick Up 65 | 5 16 44 Fast Attach 16 | 2 3 11 Attach 23 | 1 7 15 Detach 3 | . 1 2 Swap 25 | . 8 17 Drop 53 | . 10 43 Fire 115 | . 25 90 Melee . | . . . Ram . | . . . Kick . | . . . Crush . | . . . Escape Stasis . | . . . Rewire . | . . . Trap . | . . . Miscellaneous . | . . . Route ------- -11/Scrapyard -10/Materials (discovered 2 exits: *Mat / [*Min]) -9/Materials (discovered 2 exits: [*Mat] / [*Min]) History --------- Turn | Location | Event 3 | -11/Scrapyard | Discovered new exit (range 15) 62 | -11/Scrapyard | Entered Materials 156 | -10/Materials | Discovered new exit (range 4) 269 | -10/Materials | Discovered new exit (range 15) 327 | -10/Materials | Build established: Mutant 456 | -10/Materials | Entered another Materials area 456 | -9/Materials | Evolved 2 slots: Propulsion x2 1013 | -9/Materials | Discovered new exit (range 17) 1122 | -9/Materials | Core integrity fell below 50% 1136 | -9/Materials | Discovered new exit (range 12) 1254 | -9/Materials | Destroyed self via exploding Fusion Modulator Last Messages --------------- 01189_ Imp. Hover Unit crushed. 01189_ U-05 Engineer lays Concrete. 01190_ The unstable cave ceiling collapses. 01191_ K-01 Serf collects debris. 01194_ Triggered Alarm Trap. 01194_ An alarm sounds. 01194_ ALERT: Alarm triggered, dispatching investigation squad. 01198_ A-02 Transporter destroyed. 01205_ Acquired 54 matter. 01219_ W-16 Scout destroyed. 01223_ Acquired 22 matter. 01229_ Connecting with Terminal... >>Trojan(Botnet) Trojan loaded successfully. Testing... Terminal linked with 0 systems. Awaiting botnet instructions. 01242_ S-10 Pest destroyed. 01254_ Fusion Modulator explodes. 01254_ S-10 Pest destroyed. Map ----- +----------------------------------------------------+ | ????????#!#????????????????????# ####*/##?????? | | ????????#!#????????????????????#### #??##/#??????? | | ????????#[#???????????????????????# ##### #??????? | | ????????# #???????????????????????# !!!#??????? | | ????????#!#????????????########???# #######??????? | | ????????#!#????????????# [ #???# #????????????? | | ????????# #????????????# #???# ########?????? | | ????????#*#????????????# "" #???# # #?????? | | ????????#!#????????????# T" #???# # #?????? | | #######?# #????????????# "" #???# + #?????? | | * !! =#?#[#????????????# #???# # #?????? | | **!! [#?#*#????????????###+######## # #?????? | | * ] #?# #??????????????# *+ #?????? | | ### ### ##???"???####### = ########?????? | | ###^ =^# ""???# # ##??????? | | # ^^ ^ + ""???# """ + ????? | | + #???????# """ # #??? | | # ### ##???????# """ # """"" #??? | | ### #?# #????????# ?# """"" #??? | | #?# #????????####### """"" #??? | | #?# #????????###;;;;;##+# """""? ? ???? | | #?# #????????#; # """"????????? | | ##+###??+#???????##; = # ! """"????????? | | [## ??????????????# ; # """""???????? | | # ??????????????# ; Y + ! +??? | | # ??????????????# ; @ # ! #??? | | # ??????????????# ; # #??? | | # ??????????????##; % # #"T"#####????? | | #????????????????# [ # #"?"?????????? | | ##????????????????#;;;;;;;;;## ?????????????? | | #?????????????????# ;a##???????????????????? | | #?????????????????# # #????????????????????? | | #?????????????????# # ????????????????????? | | #?????????????????# + ????????????????????? | | #?????????????????# ! # w ???????????????????? | | #?????????????????# ??#+???????????????????? | | #?????????????????# ???????????????????????? | | #?????????????????# ???????????????????????? | | #?????????????????# != ???????????????????????? | | #?????????????????Y != ???????????????????????? | | #?????????????????# ???????????????????????? | | #??????????????????? ???????????????????????? | | #????????????????????? ???????????????????????? | | #???????????????????????????????????????????????? | | ##???????????????????????????????????????????????? | | ?????????????????????????????????????????????????? | | ?????????????????????????????????????????????????? | | ?????????????????????????????????????????????????? | | ?????????????????????????????????????????????????? | | | +----------------------------------------------------+ Best States ------------- Heat Dissipation 42 Energy Generation 14 Energy Capacity 280 Matter Stores 300 Matter Capacity 300 Sight Range 18 Terrain Scan Density 10 Armor Coverage 150 Evasion (%) 62 Recoil Reduction 1 Item Schematics ----------------- None Robot Schematics ------------------ None Fabricated ------------ Nothing Alien Tech Used ----------------- None Achievements -------------- None Challenges ------------ None Game ------ Seed ReflectiveThunderWell Manual? 0 Play Time 00:22:59 Cumulative 86.6 hours Start 2019.11.01 @ 17:02:48 End 2019.11.01 @ 17:23:59 Sessions 1 Manual Loads 0 Difficulty Rogue Special Mode None Game No. 137 Rogue 137 Adventurer 0 Explorer 0 Win Type - Total 0 Types 0/0/0/0/0/0/0 Lore% 30 Gallery% 43 Achievement% 31 Wizard Run 0 Options --------- ASCII 0 Keyboard 0 Movement Mouse Keybinds 0 Fullscreen 1 Font 18/SmallcapsGlow Map View 76x50 Tactical HUD 1 Map Filters NONE Filters NONE Steam 1 RUN: 904650b4-3578-43ad-b3dc-e4b51284a976